fUSD/lending_fUSD_20250708
["ID","MTS","AMOUNT","RATE_DAILY","PERIOD"]
[370305859,1751945443665,-460.0,0.00030136,7]
[370305860,1751945443676,-254.89,0.00030136,7]
[370305861,1751945443686,-460.0,0.00030136,7]
[370305862,1751945443696,-460.0,0.00030136,7]
[370305863,1751945443706,-460.0,0.00030136,7]
[370305864,1751945443717,-460.0,0.00030136,7]
[370305865,1751945443727,-460.0,0.00030136,7]
[370305866,1751945443737,-786.44,0.00030136,7]
[370305867,1751945443748,-715.27,0.00030136,7]
[370305868,1751945443759,-460.0,0.00030136,7]
[370305869,1751945443769,-460.0,0.00030136,7]
[370305870,1751945443779,-460.0,0.00030136,7]
[370305871,1751945443790,-460.0,0.00030136,7]
[370305872,1751945443800,-460.0,0.00030136,7]
[370305873,1751945443810,-460.0,0.00030136,7]
[370305874,1751945443820,-460.0,0.00030136,7]
[370305875,1751945443830,-657.88,0.00030136,7]
[370305876,1751945443840,-460.0,0.00030136,7]
[370305877,1751945443850,-460.0,0.00030136,7]
[370305878,1751945443860,-460.0,0.00030136,7]
[370305879,1751945443871,-460.0,0.00030136,7]
[370305880,1751945443881,-460.0,0.00030136,7]
[370305881,1751945443891,-460.0,0.00030136,7]
[370305882,1751945443902,-460.0,0.00030136,7]
[370305883,1751945443912,-460.0,0.00030136,7]
[370305884,1751945443922,-460.0,0.00030136,7]
[370305885,1751945443933,-460.0,0.00030136,7]
[370305886,1751945443943,-460.0,0.00030136,7]
[370305887,1751945443953,-460.0,0.00030136,7]
[370305888,1751945443963,-645.05,0.00030136,7]
[370305889,1751945443975,-460.0,0.00030136,7]
[370305890,1751945443985,-460.0,0.00030136,7]
[370305891,1751945444343,-460.0,0.00030136,7]
[370305892,1751945444354,-460.0,0.00030136,7]
[370305893,1751945444364,-460.0,0.00030136,7]
[370305894,1751945444374,-460.0,0.00030136,7]
[370305895,1751945444383,-460.0,0.00030136,7]
[370305896,1751945444393,-460.0,0.00030136,7]
[370305897,1751945444402,-460.0,0.00030136,7]
[370305898,1751945444411,-500.0,0.00030136,7]
[370305899,1751945444420,-460.0,0.00030136,7]
[370305900,1751945444429,-460.0,0.00030136,7]
[370305901,1751945444439,-850.46,0.00030136,7]
[370305902,1751945444448,-460.0,0.00030136,7]
[370305903,1751945444457,-221.76069421,0.00030136,7]
[370305904,1751945444467,-747.51,0.00030136,7]
[370305905,1751945444477,-460.0,0.00030136,7]
[370305906,1751945444487,-460.0,0.00030136,7]
[370305907,1751945444497,-460.0,0.00030136,7]
[370305908,1751945444508,-460.0,0.00030136,7]
[370305909,1751945444521,-558.67286623,0.00030136,7]
[370305910,1751945444530,-460.0,0.00030136,7]
[370305911,1751945444540,-460.0,0.00030136,7]
[370305912,1751945444549,-460.0,0.00030136,7]
[370305913,1751945444560,-581.56,0.00030136,7]
[370305914,1751945444570,-490.0,0.00030136,7]
[370305915,1751945444580,-514.86,0.00030136,7]
[370305916,1751945444589,-777.18,0.00030136,7]
[370305917,1751945444599,-460.0,0.00030136,7]
[370305918,1751945444609,-460.0,0.00030136,7]
[370305919,1751945444618,-281.5,0.00030136,7]
[370305920,1751945444628,-460.0,0.00030136,7]
[370305921,1751945444637,-460.0,0.00030136,7]
[370305922,1751945444647,-460.0,0.00030136,7]
[370305923,1751945444656,-460.0,0.00030136,7]
[370305924,1751945444669,-710.37,0.00030136,7]
[370305925,1751945444678,-460.0,0.00030136,7]
[370305926,1751945444688,-460.0,0.00030136,7]
[370305927,1751945444697,-460.0,0.00030136,7]
[370305928,1751945444706,-460.0,0.00030136,7]
[370305929,1751945444717,-460.0,0.00030136,7]
[370305930,1751945444727,-460.0,0.00030136,7]
[370305931,1751945444736,-460.0,0.00030136,7]
[370305932,1751945444746,-460.0,0.00030136,7]
[370305933,1751945444756,-546.88,0.00030136,7]
[370305934,1751945444765,-460.0,0.00030136,7]
[370305935,1751945444774,-460.0,0.00030136,7]
[370305936,1751945444784,-460.0,0.00030136,7]
[370305937,1751945444793,-819.6,0.00030136,7]
[370305938,1751945444803,-460.0,0.00030136,7]
[370305939,1751945444812,-560.2,0.00030136,7]
[370305940,1751945444822,-460.0,0.00030136,7]
[370305941,1751945444831,-460.0,0.00030136,7]
[370305942,1751945444840,-617.33,0.00030136,7]
[370305943,1751945444849,-1125.96,0.00030136,7]
[370305944,1751945444858,-460.0,0.00030136,7]
[370305945,1751945444869,-460.0,0.00030136,7]
[370305946,1751945444879,-460.0,0.00030136,7]
[370305947,1751945444888,-472.45727987,0.00030136,7]
[370305948,1751945444897,-897.38,0.00030136,7]
[370305949,1751945444907,-460.0,0.00030136,7]
[370305950,1751945444916,-600.0267515,0.00030136,7]
[370305951,1751945444926,-460.0,0.00030136,7]
[370305952,1751945444935,-678.69,0.00030136,7]
[370305953,1751945444945,-460.0,0.00030136,7]
[370305954,1751945444954,-460.0,0.00030136,7]
[370305955,1751945444964,-503.78607221,0.00030136,7]
[370305956,1751945444973,-460.0,0.00030136,7]
[370305957,1751945444982,-586.24,0.00030136,7]
[370305958,1751945444991,-586.24,0.00030136,7]
[370305959,1751945445001,-460.0,0.00030136,7]
[370305960,1751945445010,-630.09,0.00030136,7]
[370305961,1751945445019,-637.51,0.00030136,7]
[370305962,1751945445028,-1142.45,0.00030136,7]
[370305963,1751945445037,-599.31,0.00030136,7]
[370305964,1751945445046,-704.7,0.00030136,7]
[370305965,1751945445056,-500.0,0.00030136,7]
[370305966,1751945445065,-490.0,0.00030136,7]
[370305967,1751945445074,-460.0,0.00030136,7]
[370305968,1751945445083,-487.03,0.00030136,7]
[370305969,1751945445092,-643.95,0.00030136,7]
[370305970,1751945445101,-460.0,0.00030136,7]
[370305971,1751945445110,-460.0,0.00030136,7]
[370305972,1751945445120,-741.32,0.00030136,7]
[370305973,1751945445130,-535.9,0.00030136,7]
[370305974,1751945445139,-460.0,0.00030136,7]
[370305975,1751945445153,-460.0,0.00030136,7]
[370305976,1751945445162,-490.0,0.00030136,7]
[370305977,1751945445174,-193.94014948,0.00030136,7]
[370305978,1751945445184,-460.0,0.00030136,7]
[370305979,1751945445194,-460.0,0.00030136,7]
[370305980,1751945445203,-460.0,0.00030136,7]
[370305981,1751945445212,-460.0,0.00030136,7]
[370305982,1751945445223,-460.0,0.00030136,7]
[370305983,1751945445232,-460.0,0.00030136,7]
[370305984,1751945445241,-460.0,0.00030136,7]
[370305985,1751945445251,-460.0,0.00030136,7]
[370305986,1751945445260,-531.51,0.00030136,7]
[370305987,1751945445269,-694.77,0.00030136,7]
[370305988,1751945445278,-641.57,0.00030136,7]
[370305989,1751945445287,-390.73037984,0.00030136,7]
[370305990,1751945445297,-535.54,0.00030136,7]
[370305991,1751945445307,-672.13,0.00030136,7]
[370305992,1751945445316,-460.0,0.00030136,7]
[370305993,1751945445325,-490.0,0.00030136,7]
[370305994,1751945445335,-460.0,0.00030136,7]
[370305995,1751945445344,-500.01,0.00030136,7]
[370305997,1751945445353,-460.0,0.00030136,7]
[370305998,1751945445362,-460.0,0.00030136,7]
[370305999,1751945445371,-583.92,0.00030136,7]
[370306000,1751945445381,-460.0,0.00030136,7]
[370306001,1751945445390,-593.22,0.00030136,7]
[370306003,1751945445399,-460.0,0.00030136,7]
[370306004,1751945445409,-460.0,0.00030136,7]
[370306005,1751945445418,-460.0,0.00030136,7]
[370306006,1751945445427,-460.0,0.00030136,7]
[370306007,1751945445436,-460.0,0.00030136,7]
[370306008,1751945445446,-522.7718776,0.00030136,7]
[370306009,1751945445455,-686.51,0.00030136,7]
[370306010,1751945445465,-490.0,0.00030136,7]
[370306011,1751945445474,-364.807268,0.00030136,7]
[370306012,1751945445484,-460.0,0.00030136,7]
[370306013,1751945445493,-460.0,0.00030136,7]
[370306014,1751945445503,-460.0,0.00030136,7]
[370306015,1751945445512,-460.0,0.00030136,7]
[370306016,1751945445522,-460.0,0.00030136,7]
[370306017,1751945445531,-460.0,0.00030136,7]
[370306018,1751945445541,-460.0,0.00030136,7]
[370306019,1751945445550,-490.0,0.00030136,7]
[370306020,1751945445559,-460.0,0.00030136,7]
[370306021,1751945445569,-485.25303095,0.00030136,7]
[370306022,1751945445579,-686.79,0.00030136,7]
[370306023,1751945445588,-460.0,0.00030136,7]
[370306024,1751945445597,-460.0,0.00030136,7]
[370306025,1751945445607,-490.0,0.00030136,7]
[370306026,1751945445616,-460.0,0.00030136,7]
[370306027,1751945445625,-2590.95,0.00030136,7]
[370306028,1751945445634,-460.0,0.00030136,7]
[370306029,1751945445644,-460.0,0.00030136,7]
[370306030,1751945445653,-460.0,0.00030136,7]
[370306031,1751945445663,-460.0,0.00030136,7]
[370306032,1751945445672,-460.0,0.00030136,7]
[370306033,1751945445681,-523.32263667,0.00030136,7]
[370306034,1751945445690,-541.48707175,0.00030136,7]
[370306035,1751945445700,-460.0,0.00030136,7]
[370306036,1751945445710,-460.0,0.00030136,7]
[370306037,1751945445719,-460.0,0.00030136,7]
[370306038,1751945445729,-694.35,0.00030136,7]
[370306039,1751945445739,-460.0,0.00030136,7]
[370306040,1751945445748,-460.0,0.00030136,7]
[370306041,1751945445758,-757.04,0.00030136,7]
[370306042,1751945445767,-460.0,0.00030136,7]
[370306043,1751945445777,-490.0,0.00030136,7]
[370306044,1751945445787,-1329.96,0.00030136,7]
[370306045,1751945445796,-590.65,0.00030136,7]
[370306046,1751945445806,-585.31,0.00030136,7]
[370306047,1751945445815,-460.0,0.00030136,7]
[370306048,1751945445824,-569.5,0.00030136,7]
[370306049,1751945445833,-515.87,0.00030136,7]
[370306050,1751945445842,-672.65,0.00030136,7]
[370306051,1751945445852,-460.0,0.00030136,7]
[370306052,1751945445861,-666.81,0.00030136,7]
[370306053,1751945445870,-460.0,0.00030136,7]
[370306054,1751945445880,-460.0,0.00030136,7]
[370306055,1751945445890,-460.0,0.00030136,7]
[370306056,1751945445900,-460.0,0.00030136,7]
[370306057,1751945445909,-490.0,0.00030136,7]
[370306058,1751945445921,-977.41,0.00030136,7]
[370306059,1751945445930,-541.23,0.00030136,7]
[370306061,1751945445939,-732.96,0.00030136,7]
[370306062,1751945445950,-617.19,0.00030136,7]
[370306063,1751945445960,-852.22,0.00030136,7]
[370306064,1751945445971,-460.0,0.00030136,7]
[370306065,1751945445981,-460.0,0.00030136,7]
[370306066,1751945445991,-460.0,0.00030136,7]
[370306067,1751945446002,-460.0,0.00030136,7]
[370306068,1751945446011,-490.0,0.00030136,7]
[370306069,1751945446023,-460.0,0.00030136,7]
[370306070,1751945446034,-873.77,0.00030136,7]
[370306071,1751945446045,-669.08,0.00030136,7]
[370306072,1751945446055,-460.0,0.00030136,7]
[370306073,1751945446064,-460.0,0.00030136,7]
[370306074,1751945446074,-460.0,0.00030136,7]
[370306075,1751945446083,-460.0,0.00030136,7]
[370306076,1751945446093,-460.0,0.00030136,7]
[370306077,1751945446102,-687.22,0.00030136,7]
[370306078,1751945446112,-1304.98,0.00030136,7]
[370306079,1751945446122,-460.0,0.00030136,7]
[370306080,1751945446131,-460.0,0.00030136,7]
[370306081,1751945446142,-1109.25,0.00030136,7]
[370306082,1751945446153,-460.0,0.00030136,7]
[370306083,1751945446163,-490.0,0.00030136,7]
[370306084,1751945446173,-173.398107,0.00030136,7]
[370306085,1751945446182,-460.0,0.00030136,7]
[370306086,1751945446192,-384.612349,0.00030136,7]
[370306087,1751945446204,-460.0,0.00030136,7]
[370306088,1751945446213,-460.0,0.00030136,7]
[370306089,1751945446223,-349.680046,0.00030136,7]
[370306090,1751945446233,-158.998157,0.00030136,7]
[370306091,1751945446243,-2650.88,0.00030136,7]
[370306092,1751945446253,-151.273585,0.00030136,7]
[370306093,1751945446263,-478.95727104,0.00030136,7]
[370306094,1751945446273,-460.0,0.00030136,7]
[370306095,1751945446283,-465.45176,0.00030136,7]
[370306096,1751945446292,-2976.28,0.00030136,7]
[370306097,1751945446304,-1352.42,0.00030136,7]
[370306098,1751945446314,-490.0,0.00030136,7]
[370306099,1751945446323,-954.23,0.00030136,7]
[370306100,1751945446333,-473.0100875,0.00030136,7]
[370306101,1751945446343,-460.0,0.00030136,7]
[370306102,1751945446353,-460.0,0.00030136,7]
[370306103,1751945446363,-517.4,0.00030136,7]
[370306104,1751945446373,-460.0,0.00030136,7]
[370306105,1751945446383,-150.985406,0.00030136,7]
[370306106,1751945446393,-460.0,0.00030136,7]
[370306107,1751945446402,-490.0,0.00030136,7]
[370306108,1751945446411,-544.94,0.00030136,7]
[370306109,1751945446421,-460.0,0.00030136,7]
[370306110,1751945446431,-460.0,0.00030136,7]
[370306111,1751945446441,-460.0,0.00030136,7]
[370306112,1751945446450,-903.0,0.00030136,7]
[370306113,1751945446460,-460.0,0.00030136,7]
[370306114,1751945446470,-460.0,0.00030136,7]
[370306115,1751945446480,-460.0,0.00030136,7]
[370306116,1751945446490,-491.74180261,0.00030136,7]
[370306117,1751945446501,-460.0,0.00030136,7]
[370306118,1751945446513,-460.0,0.00030136,7]
[370306119,1751945446523,-460.0,0.00030136,7]
[370306120,1751945446533,-585.49,0.00030136,7]
[370306121,1751945446542,-460.0,0.00030136,7]
[370306122,1751945446552,-605.39,0.00030136,7]
[370306123,1751945446562,-460.0,0.00030136,7]
[370306124,1751945446572,-460.0,0.00030136,7]
[370306125,1751945446582,-460.0,0.00030136,7]
[370306126,1751945446593,-1823.7,0.00030136,7]
[370306127,1751945446603,-534.83698329,0.00030136,7]
[370306128,1751945446612,-460.0,0.00030136,7]
[370306129,1751945446622,-739.45,0.00030136,7]
[370306130,1751945446632,-756.0,0.00030136,7]
[370306131,1751945446643,-2017.01,0.00030136,7]
[370306132,1751945446652,-460.0,0.00030136,7]
[370306133,1751945446664,-460.0,0.00030136,7]
[370306134,1751945446675,-490.0,0.00030136,7]
[370306135,1751945446685,-460.0,0.00030136,7]
[370306136,1751945446694,-851.2,0.00030136,7]
[370306137,1751945446704,-460.0,0.00030136,7]
[370306138,1751945446713,-980.57,0.00030136,7]
[370306139,1751945446722,-216.606987,0.00030136,7]
[370306140,1751945446732,-1389.4,0.00030136,7]
[370306141,1751945446741,-1000.0,0.00030136,7]
[370306142,1751945446750,-460.0,0.00030136,7]
[370306143,1751945446760,-460.0,0.00030136,7]
[370306144,1751945446770,-460.0,0.00030136,7]
[370306145,1751945446779,-460.0,0.00030136,7]
[370306146,1751945446789,-460.0,0.00030136,7]
[370306147,1751945446798,-494.72,0.00030136,7]
[370306148,1751945446808,-460.0,0.00030136,7]
[370306149,1751945446818,-1196.75,0.00030136,7]
[370306150,1751945446827,-523.18,0.00030136,7]
[370306151,1751945446837,-460.0,0.00030136,7]
[370306152,1751945446846,-695.63,0.00030136,7]
[370306153,1751945446855,-460.0,0.00030136,7]
[370306154,1751945446864,-1182.73,0.00030136,7]
[370306155,1751945446874,-460.0,0.00030136,7]
[370306156,1751945446883,-460.0,0.00030136,7]
[370306157,1751945446892,-180.36594079,0.00030136,7]
[370306158,1751945446902,-460.0,0.00030136,7]
[370306159,1751945446911,-300.0,0.00030136,2]
[370306160,1751945446920,-460.0,0.00030136,7]
[370306161,1751945446929,-460.0,0.00030136,7]
[370306162,1751945446938,-460.0,0.00030136,7]
[370306163,1751945446947,-537.54,0.00030136,7]
[370306164,1751945446956,-500.0,0.00030136,7]
[370306165,1751945446967,-1765.96,0.00030136,7]
[370306166,1751945446976,-460.0,0.00030136,7]
[370306167,1751945446985,-582.27,0.00030136,7]
[370306168,1751945446995,-670.26,0.00030136,7]
[370306169,1751945447004,-460.0,0.00030136,7]
[370306170,1751945447014,-460.0,0.00030136,7]
[370306171,1751945447023,-460.0,0.00030136,7]
[370306172,1751945447032,-2782.51,0.00030136,7]
[370306173,1751945447042,-460.0,0.00030136,7]
[370306174,1751945447052,-1053.55,0.00030136,7]
[370306175,1751945447061,-520.3,0.00030136,7]
[370306176,1751945447071,-460.0,0.00030136,7]
[370306177,1751945447081,-460.0,0.00030136,7]
[370306178,1751945447090,-460.0,0.00030136,7]
[370306179,1751945447099,-460.0,0.00030136,7]
[370306180,1751945447109,-460.0,0.00030136,7]
[370306181,1751945447118,-231.65196429,0.00030136,7]
[370306182,1751945447127,-460.0,0.00030136,7]
[370306183,1751945447136,-460.0,0.00030136,7]
[370306184,1751945447147,-460.0,0.00030136,7]
[370306185,1751945447158,-203.871062,0.00030136,7]
[370306186,1751945447168,-729.53,0.00030136,7]
[370306187,1751945447177,-460.0,0.00030136,7]
[370306188,1751945447187,-460.0,0.00030136,7]
[370306189,1751945447198,-460.0,0.00030136,7]
[370306190,1751945447207,-460.0,0.00030136,7]
[370306191,1751945447217,-460.0,0.00030136,7]
[370306192,1751945447228,-471.33,0.00030136,7]
[370306193,1751945447237,-1450.96,0.00030136,7]
[370306194,1751945447247,-460.0,0.00030136,7]
[370306195,1751945447257,-470.13,0.00030136,7]
[370306196,1751945447266,-460.0,0.00030136,7]
[370306197,1751945447276,-460.0,0.00030136,7]
[370306198,1751945447286,-460.0,0.00030136,7]
[370306199,1751945447296,-460.0,0.00030136,7]
[370306200,1751945447483,-460.0,0.00030136,7]
[370306201,1751945447493,-835.22,0.00030136,7]
[370306202,1751945447503,-542.73,0.00030136,7]
[370306203,1751945447513,-500.0,0.00030136,7]
[370306204,1751945447522,-492.49483486,0.00030136,7]
[370306205,1751945447532,-255.18980131,0.00030136,7]
[370306206,1751945447542,-460.0,0.00030136,7]
[370306207,1751945447552,-729.25,0.00030136,7]
[370306208,1751945447563,-460.0,0.00030136,7]
[370306209,1751945447573,-1812.69,0.00030136,7]
[370306210,1751945447583,-460.0,0.00030136,7]
[370306211,1751945447592,-460.0,0.00030136,7]
[370306212,1751945447602,-460.0,0.00030136,7]
[370306213,1751945447612,-1585.14,0.00030136,7]
[370306214,1751945447622,-460.0,0.00030136,7]
[370306215,1751945447631,-460.0,0.00030136,7]
[370306216,1751945447641,-490.0,0.00030136,7]
[370306217,1751945447651,-888.83,0.00030136,7]
[370306218,1751945447660,-708.52,0.00030136,7]
[370306219,1751945447670,-875.39,0.00030136,7]
[370306220,1751945447679,-460.0,0.00030136,7]
[370306221,1751945447689,-569.59,0.00030136,7]
[370306222,1751945447699,-499.99,0.00030136,7]
[370306223,1751945447709,-460.0,0.00030136,7]
[370306224,1751945447719,-460.0,0.00030136,7]
[370306225,1751945447728,-460.0,0.00030136,7]
[370306226,1751945447738,-460.0,0.00030136,7]
[370306227,1751945447748,-460.0,0.00030136,7]
[370306228,1751945447757,-460.0,0.00030136,7]
[370306229,1751945447768,-460.0,0.00030136,7]
[370306230,1751945447778,-460.0,0.00030136,7]
[370306231,1751945447787,-1599.48,0.00030136,7]
[370306232,1751945447797,-518.65,0.00030136,7]
[370306233,1751945447806,-460.0,0.00030136,7]
[370306234,1751945447816,-460.0,0.00030136,7]
[370306235,1751945447825,-460.0,0.00030136,7]
[370306236,1751945447835,-577.97,0.00030136,7]
[370306237,1751945447844,-460.0,0.00030136,7]
[370306238,1751945447854,-460.0,0.00030136,7]
[370306239,1751945447863,-793.44,0.00030136,7]
[370306240,1751945447873,-853.99,0.00030136,7]
[370306241,1751945447882,-460.0,0.00030136,7]
[370306242,1751945447892,-460.0,0.00030136,7]
[370306243,1751945447901,-460.0,0.00030136,7]
[370306244,1751945447910,-1137.76,0.00030136,7]
[370306245,1751945447920,-874.77,0.00030136,7]
[370306246,1751945447930,-460.0,0.00030136,7]
[370306247,1751945447939,-881.67,0.00030136,7]
[370306248,1751945447949,-735.65,0.00030136,7]
[370306249,1751945447958,-888.84,0.00030136,7]
[370306250,1751945447969,-159.91016,0.00030136,7]
[370306251,1751945447979,-659.26,0.00030136,7]
[370306252,1751945447988,-460.0,0.00030136,7]
[370306253,1751945447998,-460.0,0.00030136,7]
[370306254,1751945448007,-158.987019,0.00030136,7]
[370306255,1751945448016,-460.0,0.00030136,7]
[370306256,1751945448026,-1148.88,0.00030136,7]
[370306257,1751945448035,-500.0,0.00030136,7]
[370306258,1751945448045,-460.0,0.00030136,7]
[370306259,1751945448055,-460.0,0.00030136,7]
[370306260,1751945448064,-500.0,0.00030136,7]
[370306261,1751945448074,-500.0,0.00030136,7]
[370306262,1751945448084,-500.0,0.00030136,7]
[370306263,1751945448093,-500.0,0.00030136,7]
[370306264,1751945448103,-500.0,0.00030136,7]
[370306265,1751945448112,-500.0,0.00030136,7]
[370306266,1751945448122,-473.34,0.00030136,7]
[370306267,1751945448131,-460.0,0.00030136,7]
[370306268,1751945448141,-460.0,0.00030136,7]
[370306269,1751945448153,-460.0,0.00030136,7]
[370306270,1751945448163,-460.0,0.00030136,7]
[370306271,1751945448172,-3273.32,0.00030136,7]
[370306272,1751945448182,-604.41,0.00030136,7]
[370306273,1751945448192,-460.0,0.00030136,7]
[370306274,1751945448202,-460.0,0.00030136,7]
[370306275,1751945448212,-460.0,0.00030136,7]
[370306276,1751945448224,-460.0,0.00030136,7]
[370306277,1751945448233,-783.02,0.00030136,7]
[370306278,1751945448243,-460.0,0.00030136,7]
[370306279,1751945448254,-460.0,0.00030136,7]
[370306280,1751945448263,-460.0,0.00030136,7]
[370306281,1751945448272,-460.0,0.00030136,7]
[370306282,1751945448281,-1697.88,0.00030136,7]
[370306283,1751945448291,-532.42987253,0.00030136,7]
[370306284,1751945448300,-460.0,0.00030136,7]
[370306285,1751945448310,-460.0,0.00030136,7]
[370306286,1751945448320,-600.23,0.00030136,7]
[370306287,1751945448329,-737.61,0.00030136,7]
[370306288,1751945448339,-7040.43,0.00030136,7]
[370306289,1751945448349,-460.0,0.00030136,7]
[370306290,1751945448358,-1590.72,0.00030136,7]
[370306291,1751945448368,-607.73,0.00030136,7]
[370306292,1751945448378,-460.0,0.00030136,7]
[370306293,1751945448388,-502.23710006,0.00030136,7]
[370306294,1751945448398,-460.0,0.00030136,7]
[370306295,1751945448408,-178.15,0.00030164,30]
[370306296,1751945448417,-501.92415881,0.00030173,5]
[370306297,1751945448427,-3961.42950983,0.00030186,2]
[370306298,1751945448436,-2538.72933197,0.00030196,2]
[370306299,1751945448447,-159.09073866,0.0003031,2]
[370306300,1751945448456,-1346.31,0.00030343,2]
[370306301,1751945448467,-719.25,0.00030343,2]
[370306302,1751945448476,-150.0,0.00030343,2]
[370306303,1751945448486,-456.63,0.00030343,2]
[370306304,1751945448496,-327.79,0.00030343,2]
[370306305,1751945448505,-234.80930217,0.00030356,2]
[370306306,1751945448515,-114881.455785,0.00030399,2]
[370306307,1751945448524,-500.0,0.00030407,7]
[370306308,1751945448534,-1697.88,0.00030407,7]
[370306309,1751945448543,-500.0,0.00030408,7]
[370306310,1751945448553,-500.0,0.00030408,7]
[370306311,1751945448562,-300.0,0.00030409,10]
[370306312,1751945448572,-460.0,0.00030409,7]
[370306313,1751945448582,-523.8235931,0.00030409,7]
[370306314,1751945448592,-460.0,0.00030409,7]
[370306315,1751945448601,-524.36172699,0.00030409,7]
[370306316,1751945448611,-460.0,0.00030409,7]
[370306317,1751945448620,-460.0,0.00030409,7]
[370306318,1751945448630,-490.0,0.00030409,7]
[370306319,1751945448639,-490.0,0.00030409,7]
[370306320,1751945448648,-490.0,0.00030409,7]
[370306321,1751945448657,-460.0,0.00030409,7]
[370306322,1751945448667,-252.27544769,0.00030409,7]
[370306323,1751945448676,-460.0,0.00030409,7]
[370306324,1751945448686,-460.0,0.00030409,7]
[370306325,1751945448696,-460.0,0.00030409,7]
[370306326,1751945448706,-460.0,0.00030409,7]
[370306327,1751945448715,-460.0,0.00030409,7]
[370306328,1751945448725,-460.0,0.00030409,7]
[370306329,1751945448736,-560.03410278,0.00030409,7]
[370306330,1751945448745,-496.35677627,0.00030409,7]
[370306331,1751945448755,-456.28268594,0.00030409,7]
[370306332,1751945448765,-460.0,0.00030409,7]
[370306333,1751945448774,-563.29869076,0.00030409,7]
[370306334,1751945448784,-172.62386695,0.00030409,7]
[370306335,1751945448792,-460.0,0.00030409,7]
[370306336,1751945448802,-460.0,0.00030409,7]
[370306337,1751945448812,-388.01560577,0.00030409,7]
[370306338,1751945448821,-460.0,0.00030409,7]
[370306339,1751945448830,-185.6680278,0.00030409,7]
[370306340,1751945448841,-460.0,0.00030409,7]
[370306341,1751945448850,-460.0,0.00030409,7]
[370306342,1751945448860,-460.0,0.00030409,7]
[370306343,1751945448870,-460.0,0.00030409,7]
[370306344,1751945448879,-616.54,0.00030409,7]
[370306345,1751945448888,-460.0,0.00030409,7]
[370306346,1751945448898,-460.0,0.00030409,7]
[370306347,1751945448910,-477.16983483,0.00030409,7]
[370306348,1751945448919,-460.0,0.00030409,7]
[370306349,1751945448929,-366.55650782,0.00030409,7]
[370306350,1751945448938,-192.65294306,0.00030409,7]
[370306351,1751945448948,-492.02489258,0.00030409,7]
[370306352,1751945448957,-500.0,0.00030409,7]
[370306353,1751945448967,-460.0,0.00030409,7]
[370306354,1751945448976,-460.0,0.00030409,7]
[370306355,1751945448986,-460.0,0.00030409,7]
[370306356,1751945448996,-460.0,0.00030409,7]
[370306357,1751945449005,-460.0,0.00030409,7]
[370306358,1751945449016,-460.0,0.00030409,7]
[370306359,1751945449026,-460.0,0.00030409,7]
[370306360,1751945449037,-460.0,0.00030409,7]
[370306361,1751945449047,-460.0,0.00030409,7]